[Event "95th Caplin Hastings Congress"]
[Site "Hastings"]
[Date "2020.01.03"]
[Round "7.55"]
[White "Ratnesan, Radha"]
[Black "Cresswell, Mike J"]
[Result "1-0"]
[ECO "A57"]
[WhiteElo "1487"]
[BlackElo "1662"]
[Annotator "NA"]
[PlyCount "69"]
[EventDate "2019.12.28"]
[EventType "swiss"]
[EventCountry "ENG"]
[SourceTitle "playchess.com"]
[Source "ChessBase"]
[SourceQuality "1"]
[TimeControl "40/6600+30:3000+30"]

1. d4 {[%emt 1:05:11]} Nf6 {[%emt 0:00:07]} 2. c4 {[%emt 0:00:07]} c5 {[%emt 0:00:07]} 3. d5 {[%emt 0:00:07]} b5 {[%emt 0:00:06]} 4. cxb5 {[%emt 0:00:07]} a6 {[%emt 0:00:06]} 5. f3 {[%emt 0:00:16]} g6 {[%emt 0:02:09]} 6. e4 {[%emt 0:00:35]} d6 {[%emt 0:01:04]} 7. Na3 {[%emt 0:01:15]} Bg7 {[%emt 0:01:39]} 8. Ne2 {[%emt 0:01:17]} O-O {[%emt 0:01:20]} 9. Nc3 {[%emt 0:00:34]} axb5 {[%emt 0:02:18]} 10. Ncxb5 {[%emt 0:08:39]} Na6 {[%emt 0:02:19]} 11. Be2 {[%emt 0:04:16]} Ne8 {[%emt 0:03:12]} 12. O-O {[%emt 0:09:20]} Nec7 {[%emt 0:02:43]} 13. Nxc7 {[%emt 0:07:14]} Nxc7 {[%emt 0:00:52]} 14. Nc4 {[%emt 0:03:59]} Nb5 {[%emt 0:07:19]} 15. Be3 {[%emt 0:13:06]} Nd4 {[%emt 0:06:18]} 16. Bxd4 {[%emt 0:05:38]} Bxd4+ {[%emt 0:00:23]} 17. Kh1 {[%emt 0:00:22]} Ba6 {[%emt 0:04:59]} 18. Qc2 {[%emt 0:03:45]} Qc7 {[%emt 0:05:18]} 19. Rab1 {[%emt 0:05:59]} Rfb8 {[%emt 0:03:55]} 20. b3 {[%emt 0:06:14]} Qa7 {[%emt 0:08:10]} 21. a4 {[%emt 0:03:59]} Bxc4 {[%emt 0:03:31]} 22. Bxc4 {[%emt 0:00:53]} Rb4 {[%emt 0:02:14]} 23. Rfe1 {[%emt 0:03:28]} Be5 {[%emt 0:05:00]} 24. Qf2 {[%emt 0:03:35]} Qb6 {[%emt 0:04:14]} 25. Rbd1 {[%emt 0:03:17]} Bc3 {[%emt 0:04:15]} 26. Re2 {[%emt 0:00:34]} Rb8 {[%emt 0:05:59]} 27. f4 {[%emt 0:03:53]} Rxb3 {[%emt 0:06:16]} 28. Bxb3 {[%emt 0:01:52]} Qxb3 {[%emt 0:02:24]} 29. Rc1 {[%emt 0:04:00]} Bd4 {[%emt 0:01:00]} 30. Qh4 {[%emt 0:02:37]} Bf6 {[%emt 0:02:29]} 31. Qg3 {[%emt 0:01:00]} Qxa4 {[%emt 0:01:27]} 32. e5 {[%emt 0:01:53]} dxe5 {[%emt 0:05:47]} 33. fxe5 {[%emt 0:00:43]} Rb3 {[%emt 0:01:37]} 34. Qf2 {[%emt 0:01:39]} Qa3 {[%emt 0:02:26]} 35. Rf1 {[%emt 0:02:57]} 1-0

[Event "95th Caplin Hastings Congress"]
[Site "Hastings"]
[Date "2020.01.03"]
[Round "7.56"]
[White "Dewangan, Aayush"]
[Black "Liu, Tianyi"]
[Result "0-1"]
[ECO "B48"]
[WhiteElo "1492"]
[BlackElo "1307"]
[Annotator "NA"]
[PlyCount "40"]
[EventDate "2019.12.28"]
[EventType "swiss"]
[EventCountry "ENG"]
[SourceTitle "playchess.com"]
[Source "ChessBase"]
[SourceQuality "1"]
[TimeControl "40/6600+30:3000+30"]

1. e4 {[%emt 0:00:27]} c5 {[%emt 0:01:40]} 2. Nf3 {[%emt 0:01:56]} e6 {[%emt 0:00:11]} 3. d4 {[%emt 0:00:10]} cxd4 {[%emt 0:01:00]} 4. Nxd4 {[%emt 0:01:55]} Nf6 {[%emt 0:00:43]} 5. Nc3 {[%emt 0:07:39]} Nc6 {[%emt 0:00:09]} 6. Be3 {[%emt 0:00:49]} Qc7 {[%emt 0:04:41]} 7. Qd2 {[%emt 0:10:42]} a6 {[%emt 0:14:36]} 8. O-O-O {[%emt 0:02:22]} Bb4 {[%emt 0:05:34]} 9. f3 {[%emt 0:01:13]} O-O {[%emt 0:09:53]} 10. g4 {[%emt 0:03:16]} Qa5 {[%emt 0:04:16]} 11. Nde2 {[%emt 0:09:04]} Ne5 {[%emt 0:09:44]} 12. Qe1 {[%emt 0:17:31]} Nc4 {[%emt 0:11:35]} 13. Bd2 {[%emt 0:03:48]} Ba3 {[%emt 0:27:40]} 14. Kb1 {[%emt 0:08:14]} Bxb2 {[%emt 0:10:41]} 15. Nd5 {[%emt 0:05:50]} Qb5 {[%emt 0:06:22]} 16. Ne7+ {[%emt 0:01:31]} Kh8 {[%emt 0:00:28]} 17. a4 {[%emt 0:01:58]} Qxa4 {[%emt 0:01:03]} 18. c3 {[%emt 0:00:30]} Qb3 {[%emt 0:00:42]} 19. Ng6+ {[%emt 0:00:30]} fxg6 {[%emt 0:00:15]} 20. Nd4 {[%emt 0:00:21]} Na3# {[%emt 0:00:14]} 0-1

[Event "95th Caplin Hastings Congress"]
[Site "Hastings"]
[Date "2020.01.03"]
[Round "7.57"]
[White "Stoyanov, Boris"]
[Black "Lakshmi Raja Perumal K"]
[Result "0-1"]
[ECO "C46"]
[WhiteElo "1416"]
[BlackElo "1492"]
[Annotator "NA"]
[PlyCount "104"]
[EventDate "2019.12.28"]
[EventType "swiss"]
[EventCountry "ENG"]
[SourceTitle "playchess.com"]
[Source "ChessBase"]
[SourceQuality "1"]
[TimeControl "40/6600+30:3000+30"]

1. e4 {[%emt 0:10:53]} e5 {[%emt 0:09:48]} 2. Nf3 {[%emt 0:00:27]} Nc6 {[%emt 0:00:04]} 3. Nc3 {[%emt 0:00:04]} d6 {[%emt 0:02:11]} 4. Be2 {[%emt 0:01:16]} Be6 {[%emt 0:04:12]} 5. d3 {[%emt 0:02:29]} h6 {[%emt 0:00:41]} 6. Be3 {[%emt 0:05:59]} Nf6 {[%emt 0:00:20]} 7. h3 {[%emt 0:02:02]} d5 {[%emt 0:01:08]} 8. exd5 {[%emt 0:04:33]} Nxd5 {[%emt 0:00:47]} 9. Nxd5 {[%emt 0:00:44]} Bxd5 {[%emt 0:00:10]} 10. c4 {[%emt 0:05:29]} Bb4+ {[%emt 0:02:16]} 11. Bd2 {[%emt 0:01:11]} Bxd2+ {[%emt 0:11:42]} 12. Qxd2 {[%emt 0:00:47]} Bxf3 {[%emt 0:01:16]} 13. Bxf3 {[%emt 0:03:30]} Qd6 {[%emt 0:01:23]} 14. O-O {[%emt 0:04:57]} O-O {[%emt 0:00:09]} 15. Rad1 {[%emt 0:09:22]} Rab8 {[%emt 0:00:56]} 16. Rfe1 {[%emt 0:11:21]} Nd4 {[%emt 0:00:19]} 17. Re3 {[%emt 0:13:18]} c6 {[%emt 0:05:13]} 18. Rde1 {[%emt 0:06:31]} Rbe8 {[%emt 0:00:08]} 19. Bd1 {[%emt 0:02:02]} Re6 {[%emt 0:00:07]} 20. Qa5 {[%emt 0:05:56]} b5 {[%emt 0:09:42]} 21. Qxa7 {[%emt 0:04:51]} bxc4 {[%emt 0:04:03]} 22. dxc4 {[%emt 0:00:33]} c5 {[%emt 0:03:17]} 23. Bf3 {[%emt 0:11:25]} f5 {[%emt 0:00:22]} 24. Bd5 {[%emt 0:00:47]} e4 {[%emt 0:00:59]} 25. Rg3 {[%emt 0:02:39]} Rf7 {[%emt 0:00:59]} 26. Qa8+ {[%emt 0:02:10]} Kh7 {[%emt 0:00:11]} 27. Bxe6 {[%emt 0:00:31]} Qxe6 {[%emt 0:00:22]} 28. Qd5 {[%emt 0:00:45]} Qe7 {[%emt 0:02:41]} 29. f3 {[%emt 0:02:07]} e3 {[%emt 0:01:27]} 30. f4 {[%emt 0:01:22]} e2 {[%emt 0:00:17]} 31. Kf2 {[%emt 0:01:44]} Qc7 {[%emt 0:01:04]} 32. Qe5 {[%emt 0:00:27]} Qa5 {[%emt 0:02:10]} 33. Ra3 {[%emt 0:01:28]} Qd2 {[%emt 0:02:14]} 34. Rxe2 {[%emt 0:01:25]} Nxe2 {[%emt 0:00:00]} 35. Qxe2 {[%emt 0:00:07]} Qxf4+ {[%emt 0:00:00]} 36. Rf3 {[%emt 0:00:13]} Qd4+ {[%emt 0:00:02]} 37. Kf1 {[%emt 0:00:17]} Ra7 {[%emt 0:02:22]} 38. a3 {[%emt 0:00:42]} Rb7 {[%emt 0:00:12]} 39. Rf2 {[%emt 0:00:32]} Rxb2 {[%emt 0:00:21]} 40. Qe1 {[%emt 0:01:56]} Qxc4+ {[%emt 0:02:45]} 41. Kg1 {[%emt 0:50:53]} Qd4 {[%emt 0:54:35]} 42. g3 {[%emt 0:00:00]} Ra2 {[%emt 0:00:00]} 43. Kg2 {[%emt 0:00:00]} Qd5+ {[%emt 0:00:00]} 44. Kh2 {[%emt 0:00:00]} Rxa3 {[%emt 0:00:00]} 45. Qb1 {[%emt 0:00:00]} Rd3 {[%emt 0:00:00]} 46. g4 {[%emt 0:00:00]} Qd6+ {[%emt 0:00:00]} 47. Kg2 {[%emt 0:00:00]} Qg3+ {[%emt 0:00:00]} 48. Kf1 {[%emt 0:00:00]} Qxh3+ {[%emt 0:00:00]} 49. Ke1 {[%emt 0:00:00]} Qh1+ {[%emt 0:00:00]} 50. Rf1 {[%emt 0:00:00]} Qe4+ {[%emt 0:00:00]} 51. Kf2 {[%emt 0:00:00]} Rf3+ {[%emt 0:00:00]} 52. Kg1 {[%emt 0:00:00]} Qxg4+ {[%emt 0:00:00]} 0-1

[Event "95th Caplin Hastings Congress"]
[Site "Hastings"]
[Date "2020.01.04"]
[Round "8.1"]
[White "Sengupta, Deep"]
[Black "Panchanathan, Magesh Chandran"]
[Result "0-1"]
[ECO "C59"]
[WhiteElo "2550"]
[BlackElo "2482"]
[Annotator "ChessBase"]
[PlyCount "60"]
[EventDate "2019.12.28"]
[EventType "swiss"]
[EventCountry "ENG"]
[SourceTitle "playchess.com"]
[Source "ChessBase"]
[SourceQuality "1"]
[TimeControl "40/6600+30:3000+30"]

1. e4 {[%emt 0:09:33]} e5 {[%emt 0:09:37]} 2. Nf3 {[%emt 0:00:06]} Nc6 {[%emt 0:00:06]} 3. Bc4 {[%emt 0:00:10]} Nf6 {[%emt 0:00:07]} 4. Ng5 {[%emt 0:00:08]} d5 {[%emt 0:00:16]} 5. exd5 {[%emt 0:00:06]} Na5 {[%emt 0:00:04]} 6. Bb5+ {[%emt 0:00:06]} c6 {[%emt 0:00:05]} 7. dxc6 {[%emt 0:00:04]} bxc6 {[%emt 0:00:03]} 8. Be2 {[%emt 0:00:06]} h6 {[%emt 0:00:29]} 9. Nh3 {[%emt 0:00:06]} Bc5 {[%emt 0:00:11]} 10. d3 {[%emt 0:00:05]} O-O {[%emt 0:00:08]} 11. O-O {[%emt 0:00:45]} Nb7 {[%emt 0:00:04]} 12. Nc3 {[%emt 0:00:15]} Bd4 {[%emt 0:00:21]} 13. Kh1 {[%emt 0:06:52]} Nd6 {[%emt 0:03:45]} 14. Ng1 {[%emt 0:01:52]} Re8 {[%emt 0:30:16]} 15. Na4 {[%emt 0:17:57]} Nf5 {[%emt 0:05:26]} 16. Nf3 {[%emt 0:10:14]} Ba6 {[%emt 0:25:30]} 17. Nxd4 {[%emt 0:15:10]} Qxd4 {[%emt 0:00:19]} 18. c3 {[%emt 0:00:06]} Qd6 {[%emt 0:00:05]} 19. Be3 {[%emt 0:16:29]} Rad8 {[%emt 0:00:59]} 20. Bxa7 {[%emt 0:12:05]} e4 {[%emt 0:01:01]} 21. d4 {[%emt 0:00:41]} Bxe2 {[%emt 0:01:19]} 22. Qxe2 {[%emt 0:00:02]} h5 {[%emt 0:00:38]} 23. Bc5 {[%emt 0:05:24]} Qf4 {[%emt 0:00:49]} 24. Nb6 {[%emt 0:10:47]} Qh4 {[%emt 0:04:35]} 25. Kg1 {[%emt 0:06:03]} Re6 {[%emt 0:07:50]} 26. Nc4 {[%emt 0:03:13]} Nd5 {[%emt 0:08:13]} 27. g3 {[%emt 0:03:04]} Qh3 {[%emt 0:00:43]} 28. Kh1 {[%emt 0:00:47]} h4 {[%emt 0:06:17]} 29. Rg1 {[%emt 0:00:13]} Rh6 {[%emt 0:00:21]} 30. Qf1 {[%emt 0:01:56]} Qxh2+ {[%emt 0:00:11]} 0-1

[Event "95th Caplin Hastings Congress"]
[Site "Hastings"]
[Date "2020.01.04"]
[Round "8.3"]
[White "Flear, Glenn C"]
[Black "Kantor, Gergely"]
[Result "0-1"]
[ECO "E12"]
[WhiteElo "2435"]
[BlackElo "2541"]
[Annotator "ChessBase"]
[PlyCount "66"]
[EventDate "2019.12.28"]
[EventType "swiss"]
[EventCountry "ENG"]
[SourceTitle "playchess.com"]
[Source "ChessBase"]
[SourceQuality "1"]
[TimeControl "40/6600+30:3000+30"]

1. d4 {[%emt 0:09:32]} Nf6 {[%emt 0:10:15]} 2. c4 {[%emt 0:00:12]} e6 {[%emt 0:00:26]} 3. Nf3 {[%emt 0:00:37]} b6 {[%emt 0:00:04]} 4. Bf4 {[%emt 0:04:28]} Bb4+ {[%emt 0:00:22]} 5. Nfd2 {[%emt 0:01:10]} Nh5 {[%emt 0:00:12]} 6. Bg3 {[%emt 0:04:14]} Bb7 {[%emt 0:01:05]} 7. a3 {[%emt 0:01:39]} Bf8 {[%emt 0:03:50]} 8. Nc3 {[%emt 0:05:14]} Nxg3 {[%emt 0:00:49]} 9. hxg3 {[%emt 0:00:12]} g6 {[%emt 0:00:05]} 10. e3 {[%emt 0:02:24]} Bg7 {[%emt 0:00:14]} 11. Qc2 {[%emt 0:02:52]} d6 {[%emt 0:01:51]} 12. Rh2 {[%emt 0:02:32]} c5 {[%emt 0:11:51]} 13. dxc5 {[%emt 0:17:35]} dxc5 {[%emt 0:06:09]} 14. O-O-O {[%emt 0:02:35]} Qe7 {[%emt 0:03:34]} 15. Be2 {[%emt 0:12:41]} Nc6 {[%emt 0:07:45]} 16. Nde4 {[%emt 0:04:55]} O-O {[%emt 0:06:24]} 17. g4 {[%emt 0:07:31]} f5 {[%emt 0:12:09]} 18. gxf5 {[%emt 0:00:31]} exf5 {[%emt 0:00:38]} 19. Ng3 {[%emt 0:03:13]} Ne5 {[%emt 0:04:35]} 20. Nd5 {[%emt 0:02:39]} Bxd5 {[%emt 0:00:58]} 21. Rxd5 {[%emt 0:00:20]} Rad8 {[%emt 0:08:58]} 22. Rxd8 {[%emt 0:02:24]} Rxd8 {[%emt 0:01:27]} 23. Rh1 {[%emt 0:00:22]} Qb7 {[%emt 0:05:59]} 24. f3 {[%emt 0:05:45]} b5 {[%emt 0:08:42]} 25. cxb5 {[%emt 0:04:40]} c4 {[%emt 0:01:13]} 26. Bxc4+ {[%emt 0:15:18]} Kh8 {[%emt 0:00:33]} 27. Rd1 {[%emt 0:04:26]} Rc8 {[%emt 0:02:21]} 28. b3 {[%emt 0:00:04]} Qe7 {[%emt 0:02:30]} 29. Kd2 {[%emt 0:00:26]} Nxc4+ {[%emt 0:02:13]} 30. bxc4 {[%emt 0:00:07]} Qd6+ {[%emt 0:00:05]} 31. Ke2 {[%emt 0:01:01]} Qxg3 {[%emt 0:00:38]} 32. Kf1 {[%emt 0:00:06]} h5 {[%emt 0:03:20]} 33. c5 {[%emt 0:00:21]} Qe5 {[%emt 0:00:56]} 0-1

[Event "95th Caplin Hastings Congress"]
[Site "Hastings"]
[Date "2020.01.04"]
[Round "8.4"]
[White "Stany, G.A."]
[Black "Fishbein, Alexander"]
[Result "1-0"]
[ECO "B56"]
[WhiteElo "2519"]
[BlackElo "2440"]
[Annotator "ChessBase"]
[PlyCount "79"]
[EventDate "2019.12.28"]
[EventType "swiss"]
[EventCountry "ENG"]
[SourceTitle "playchess.com"]
[Source "ChessBase"]
[SourceQuality "1"]
[TimeControl "40/6600+30:3000+30"]

1. e4 {[%emt 0:09:35]} c5 {[%emt 0:09:38]} 2. Nf3 {[%emt 0:00:03]} d6 {[%emt 0:00:02]} 3. d4 {[%emt 0:00:07]} cxd4 {[%emt 0:00:03]} 4. Nxd4 {[%emt 0:00:05]} Nf6 {[%emt 0:00:03]} 5. Nc3 {[%emt 0:00:06]} Nc6 {[%emt 0:00:03]} 6. f3 {[%emt 0:00:08]} e5 {[%emt 0:00:25]} 7. Nb3 {[%emt 0:00:10]} Be7 {[%emt 0:00:21]} 8. Be3 {[%emt 0:00:09]} O-O {[%emt 0:00:50]} 9. Qd2 {[%emt 0:00:10]} a5 {[%emt 0:00:09]} 10. Bb5 {[%emt 0:00:10]} Na7 {[%emt 0:00:32]} 11. Bxa7 {[%emt 0:00:18]} Rxa7 {[%emt 0:00:18]} 12. O-O-O {[%emt 0:00:16]} Be6 {[%emt 0:06:31]} 13. Qe3 {[%emt 0:00:09]} Ra8 {[%emt 0:01:41]} 14. Kb1 {[%emt 0:00:06]} Qb8 {[%emt 0:05:36]} 15. Rd2 {[%emt 0:32:11]} h6 {[%emt 0:12:37]} 16. g3 {[%emt 0:17:02]} Rd8 {[%emt 0:13:02]} 17. Rhd1 {[%emt 0:05:46]} Rc8 {[%emt 0:09:19]} 18. Na4 {[%emt 0:16:15]} Bd7 {[%emt 0:01:36]} 19. Qe2 {[%emt 0:04:32]} Qa7 {[%emt 0:04:55]} 20. Bxd7 {[%emt 0:01:37]} Nxd7 {[%emt 0:00:01]} 21. Rd5 {[%emt 0:03:57]} b6 {[%emt 0:04:14]} 22. Nd2 {[%emt 0:09:53]} Rab8 {[%emt 0:10:13]} 23. Nc3 {[%emt 0:03:43]} Nc5 {[%emt 0:09:01]} 24. Nb5 {[%emt 0:05:52]} Qa6 {[%emt 0:00:57]} 25. Nf1 {[%emt 0:00:41]} Ne6 {[%emt 0:01:16]} 26. c4 {[%emt 0:02:28]} Rc5 {[%emt 0:11:01]} 27. Ne3 {[%emt 0:00:47]} Rbc8 {[%emt 0:03:19]} 28. Nf5 {[%emt 0:02:59]} Bf8 {[%emt 0:00:09]} 29. Nfxd6 {[%emt 0:00:11]} Bxd6 {[%emt 0:02:43]} 30. Nxd6 {[%emt 0:00:06]} R8c7 {[%emt 0:03:29]} 31. Qf1 {[%emt 0:01:20]} Rxd5 {[%emt 0:04:42]} 32. exd5 {[%emt 0:00:55]} Nc5 {[%emt 0:00:13]} 33. Qe2 {[%emt 0:01:09]} Re7 {[%emt 0:00:40]} 34. Nf5 {[%emt 0:00:38]} Re8 {[%emt 0:00:25]} 35. Nd6 {[%emt 0:00:04]} Re7 {[%emt 0:00:21]} 36. Nf5 {[%emt 0:00:41]} Re8 {[%emt 0:00:03]} 37. d6 {[%emt 0:00:04]} Nd7 {[%emt 0:00:41]} 38. Qe4 {[%emt 0:00:21]} Qa8 {[%emt 0:00:20]} 39. Qg4 {[%emt 0:00:21]} g6 {[%emt 0:00:17]} 40. Ne7+ {[%emt 0:00:21]} 1-0

[Event "95th Caplin Hastings Congress"]
[Site "Hastings"]
[Date "2020.01.04"]
[Round "8.5"]
[White "Hebden, Mark L"]
[Black "Bagi, Mate"]
[Result "0-1"]
[ECO "D00"]
[WhiteElo "2434"]
[BlackElo "2466"]
[Annotator "ChessBase"]
[PlyCount "50"]
[EventDate "2019.12.28"]
[EventType "swiss"]
[EventCountry "ENG"]
[SourceTitle "playchess.com"]
[Source "ChessBase"]
[SourceQuality "1"]
[TimeControl "40/6600+30:3000+30"]

1. d4 {[%emt 0:10:31]} Nf6 {[%emt 0:09:51]} 2. Nc3 {[%emt 0:00:50]} d5 {[%emt 0:01:05]} 3. Bf4 {[%emt 0:00:15]} e6 {[%emt 0:02:16]} 4. e3 {[%emt 0:01:07]} Bb4 {[%emt 0:04:20]} 5. Nge2 {[%emt 0:01:34]} O-O {[%emt 0:01:21]} 6. a3 {[%emt 0:00:18]} Be7 {[%emt 0:02:52]} 7. h4 {[%emt 0:07:58]} c5 {[%emt 0:04:14]} 8. f3 {[%emt 0:04:14]} Nc6 {[%emt 0:04:55]} 9. g4 {[%emt 0:00:18]} a6 {[%emt 0:11:33]} 10. Qd2 {[%emt 0:07:10]} b5 {[%emt 0:02:36]} 11. g5 {[%emt 0:09:03]} Ne8 {[%emt 0:04:58]} 12. Ng3 {[%emt 0:02:42]} Ra7 {[%emt 0:20:08]} 13. Rg1 {[%emt 0:11:52]} Rb7 {[%emt 0:07:10]} 14. Nd1 {[%emt 0:01:29]} f6 {[%emt 0:02:40]} 15. Nh5 {[%emt 0:06:38]} fxg5 {[%emt 0:03:27]} 16. Bxg5 {[%emt 0:00:18]} cxd4 {[%emt 0:04:29]} 17. exd4 {[%emt 0:03:03]} e5 {[%emt 0:00:29]} 18. c3 {[%emt 0:00:29]} exd4 {[%emt 0:03:25]} 19. cxd4 {[%emt 0:00:35]} Qb6 {[%emt 0:00:36]} 20. Be3 {[%emt 0:07:31]} Bxh4+ {[%emt 0:02:57]} 21. Nf2 {[%emt 0:00:08]} Na5 {[%emt 0:02:47]} 22. Bd3 {[%emt 0:04:27]} Rxf3 {[%emt 0:01:57]} 23. Ke2 {[%emt 0:01:16]} Rff7 {[%emt 0:05:27]} 24. Qc2 {[%emt 0:02:33]} Rbe7 {[%emt 0:03:29]} 25. Nd1 {[%emt 0:00:57]} Nc4 {[%emt 0:00:38]} 0-1

[Event "95th Caplin Hastings Congress"]
[Site "Hastings"]
[Date "2020.01.04"]
[Round "8.8"]
[White "Wadsworth, Matthew J"]
[Black "Van den Doel, Erik"]
[Result "0-1"]
[ECO "A11"]
[WhiteElo "2401"]
[BlackElo "2588"]
[Annotator "ChessBase"]
[PlyCount "132"]
[EventDate "2019.12.28"]
[EventType "swiss"]
[EventCountry "ENG"]
[SourceTitle "playchess.com"]
[Source "ChessBase"]
[SourceQuality "1"]
[TimeControl "40/6600+30:3000+30"]

1. c4 {[%emt 0:09:36]} c6 {[%emt 0:13:48]} 2. Nf3 {[%emt 0:00:12]} d5 {[%emt 0:00:05]} 3. g3 {[%emt 0:00:04]} Nf6 {[%emt 0:00:05]} 4. Bg2 {[%emt 0:00:06]} Bf5 {[%emt 0:00:04]} 5. cxd5 {[%emt 0:01:27]} cxd5 {[%emt 0:00:07]} 6. Qb3 {[%emt 0:00:06]} Nc6 {[%emt 0:00:04]} 7. O-O {[%emt 0:00:07]} Qd7 {[%emt 0:00:28]} 8. d3 {[%emt 0:01:03]} e5 {[%emt 0:04:51]} 9. Bg5 {[%emt 0:00:30]} Be7 {[%emt 0:00:39]} 10. Nc3 {[%emt 0:03:26]} d4 {[%emt 0:09:42]} 11. Bxf6 {[%emt 0:00:30]} gxf6 {[%emt 0:14:22]} 12. Ne4 {[%emt 0:04:43]} Rc8 {[%emt 0:02:57]} 13. Rfc1 {[%emt 0:03:05]} b6 {[%emt 0:00:18]} 14. Nh4 {[%emt 0:04:53]} Be6 {[%emt 0:00:53]} 15. Qb5 {[%emt 0:00:56]} Nd8 {[%emt 0:02:27]} 16. Qxd7+ {[%emt 0:04:45]} Kxd7 {[%emt 0:01:01]} 17. Rxc8 {[%emt 0:01:15]} Kxc8 {[%emt 0:00:04]} 18. f4 {[%emt 0:02:57]} Rg8 {[%emt 0:10:56]} 19. f5 {[%emt 0:01:36]} Bd7 {[%emt 0:00:08]} 20. Rc1+ {[%emt 0:02:01]} Kb8 {[%emt 0:00:06]} 21. b4 {[%emt 0:08:22]} Nb7 {[%emt 0:08:41]} 22. Kf2 {[%emt 0:01:26]} Rc8 {[%emt 0:06:49]} 23. Rxc8+ {[%emt 0:03:25]} Kxc8 {[%emt 0:00:05]} 24. Kf3 {[%emt 0:01:33]} Nd6 {[%emt 0:02:39]} 25. Nxd6+ {[%emt 0:00:58]} Bxd6 {[%emt 0:00:27]} 26. Kg4 {[%emt 0:00:22]} Bxb4 {[%emt 0:01:01]} 27. Bd5 {[%emt 0:00:07]} Be8 {[%emt 0:00:12]} 28. Nf3 {[%emt 0:00:33]} Ba3 {[%emt 0:08:34]} 29. Nd2 {[%emt 0:01:31]} Kd7 {[%emt 0:00:11]} 30. Ne4 {[%emt 0:03:09]} Ke7 {[%emt 0:00:06]} 31. Kh5 {[%emt 0:00:06]} Bc1 {[%emt 0:00:05]} 32. g4 {[%emt 0:00:56]} h6 {[%emt 0:03:48]} 33. Bb3 {[%emt 0:02:21]} Bc6 {[%emt 0:04:15]} 34. h4 {[%emt 0:02:39]} b5 {[%emt 0:11:16]} 35. Nc5 {[%emt 0:01:12]} Kf8 {[%emt 0:03:20]} 36. a4 {[%emt 0:05:47]} bxa4 {[%emt 0:02:05]} 37. Nxa4 {[%emt 0:00:01]} Kg7 {[%emt 0:00:13]} 38. Nc5 {[%emt 0:00:34]} Ba3 {[%emt 0:00:07]} 39. Ne4 {[%emt 0:05:37]} Be7 {[%emt 0:00:30]} 40. Nd2 {[%emt 0:13:35]} a5 {[%emt 0:00:24]} 41. Nc4 {[%emt 0:50:34]} a4 {[%emt 0:50:08]} 42. Bc2 {[%emt 0:00:10]} a3 {[%emt 0:00:43]} 43. Bb3 {[%emt 0:00:03]} Ba4 {[%emt 0:00:00]} 44. Ba2 {[%emt 0:00:00]} Bd1 {[%emt 0:00:00]} 45. e3 {[%emt 0:00:00]} Bc2 {[%emt 0:00:00]} 46. exd4 {[%emt 0:00:00]} exd4 {[%emt 0:00:00]} 47. Nxa3 {[%emt 0:00:00]} Bxa3 {[%emt 0:00:00]} 48. Bc4 {[%emt 0:00:00]} Bc1 {[%emt 0:00:00]} 49. Bb5 {[%emt 0:00:00]} Kf8 {[%emt 0:00:00]} 50. Bc4 {[%emt 0:00:00]} Ke7 {[%emt 0:00:00]} 51. Bb5 {[%emt 0:00:00]} Bb3 {[%emt 0:00:00]} 52. Bc6 {[%emt 0:00:00]} Kd6 {[%emt 0:00:00]} 53. Be8 {[%emt 0:00:00]} Be3 {[%emt 0:00:00]} 54. Bb5 {[%emt 0:00:00]} Bd5 {[%emt 0:00:00]} 55. Be8 {[%emt 0:00:00]} Kc5 {[%emt 0:00:00]} 56. Bd7 {[%emt 0:00:00]} Kb4 {[%emt 0:00:00]} 57. Be8 {[%emt 0:00:00]} Kc3 {[%emt 0:00:00]} 58. Bb5 {[%emt 0:00:00]} Kd2 {[%emt 0:00:00]} 59. Ba6 {[%emt 0:00:00]} Ke2 {[%emt 0:00:00]} 60. Bb5 {[%emt 0:00:00]} Kf2 {[%emt 0:00:00]} 61. Be8 {[%emt 0:00:00]} Kg3 {[%emt 0:00:00]} 62. Ba4 {[%emt 0:00:00]} Bf3 {[%emt 0:00:00]} 63. Bd1 {[%emt 0:00:00]} Kf4 {[%emt 0:00:00]} 64. Bb3 {[%emt 0:00:00]} Bxg4+ {[%emt 0:00:00]} 65. Kxh6 {[%emt 0:00:00]} Kxf5+ {[%emt 0:00:00]} 66. Kg7 {[%emt 0:00:00]} Bh5 {[%emt 0:00:00]} 0-1

[Event "95th Caplin Hastings Congress"]
[Site "Hastings"]
[Date "2020.01.04"]
[Round "8.10"]
[White "Bates, Richard A"]
[Black "Gormally, Daniel W"]
[Result "1/2-1/2"]
[ECO "E69"]
[WhiteElo "2351"]
[BlackElo "2508"]
[Annotator "ChessBase"]
[PlyCount "80"]
[EventDate "2019.12.28"]
[EventType "swiss"]
[EventCountry "ENG"]
[SourceTitle "playchess.com"]
[Source "ChessBase"]
[SourceQuality "1"]
[TimeControl "40/6600+30:3000+30"]

1. d4 {[%emt 0:10:15]} Nf6 {[%emt 0:09:36]} 2. Nf3 {[%emt 0:00:42]} g6 {[%emt 0:00:04]} 3. g3 {[%emt 0:00:53]} Bg7 {[%emt 0:00:08]} 4. c4 {[%emt 0:01:20]} O-O {[%emt 0:00:12]} 5. Bg2 {[%emt 0:00:05]} d6 {[%emt 0:00:03]} 6. O-O {[%emt 0:00:18]} Nbd7 {[%emt 0:00:12]} 7. Nc3 {[%emt 0:00:44]} e5 {[%emt 0:00:44]} 8. e4 {[%emt 0:00:49]} c6 {[%emt 0:00:06]} 9. b3 {[%emt 0:02:33]} exd4 {[%emt 0:01:10]} 10. Nxd4 {[%emt 0:00:33]} Re8 {[%emt 0:00:05]} 11. h3 {[%emt 0:03:31]} Nc5 {[%emt 0:07:16]} 12. Re1 {[%emt 0:01:29]} a5 {[%emt 0:00:19]} 13. Rb1 {[%emt 0:04:59]} h5 {[%emt 0:11:00]} 14. Bg5 {[%emt 0:13:13]} Qb6 {[%emt 0:01:51]} 15. Be3 {[%emt 0:03:38]} Qb4 {[%emt 0:01:38]} 16. Ncb5 {[%emt 0:21:34]} Ncxe4 {[%emt 0:15:53]} 17. Nc2 {[%emt 0:07:27]} Qxe1+ {[%emt 0:03:21]} 18. Qxe1 {[%emt 0:03:20]} cxb5 {[%emt 0:00:04]} 19. cxb5 {[%emt 0:01:26]} a4 {[%emt 0:01:59]} 20. bxa4 {[%emt 0:06:03]} Rxa4 {[%emt 0:00:16]} 21. a3 {[%emt 0:01:52]} Nd5 {[%emt 0:04:29]} 22. Nb4 {[%emt 0:04:58]} Ndc3 {[%emt 0:03:33]} 23. Rc1 {[%emt 0:03:24]} Rxa3 {[%emt 0:01:35]} 24. Bxe4 {[%emt 0:03:18]} Nxe4 {[%emt 0:08:41]} 25. Nd5 {[%emt 0:02:00]} Bf5 {[%emt 0:05:21]} 26. Qb4 {[%emt 0:02:27]} Rd3 {[%emt 0:07:01]} 27. Nf4 {[%emt 0:03:37]} Nc5 {[%emt 0:09:20]} 28. g4 {[%emt 0:06:34]} hxg4 {[%emt 0:01:49]} 29. hxg4 {[%emt 0:00:04]} Be4 {[%emt 0:06:40]} 30. Nxd3 {[%emt 0:06:48]} Nxd3 {[%emt 0:00:30]} 31. Qxd6 {[%emt 0:00:11]} Nxc1 {[%emt 0:00:40]} 32. Bxc1 {[%emt 0:00:15]} Bf3 {[%emt 0:00:04]} 33. Be3 {[%emt 0:01:24]} Be5 {[%emt 0:00:03]} 34. Qd7 {[%emt 0:00:47]} Re6 {[%emt 0:06:29]} 35. Bd4 {[%emt 0:01:47]} Bxd4 {[%emt 0:00:36]} 36. Qxd4 {[%emt 0:00:15]} Re4 {[%emt 0:00:06]} 37. Qf6 {[%emt 0:01:09]} Rxg4+ {[%emt 0:03:46]} 38. Kf1 {[%emt 0:00:22]} Bg2+ {[%emt 0:01:33]} 39. Ke2 {[%emt 0:00:14]} Rb4 {[%emt 0:03:35]} 40. b6 {[%emt 0:01:03]} Bc6 {[%emt 0:00:09]} 1/2-1/2